fUSD/lending_fUSD_20241215
["ID","MTS","AMOUNT","RATE_DAILY","PERIOD"]
[345488973,1734291051039,-500.0,0.00019178,2]
[345488974,1734291051050,-652.15,0.00019178,2]
[345488975,1734291051060,-500.0,0.00019178,2]
[345488976,1734291051070,-500.0,0.00019178,2]
[345488977,1734291051081,-500.0,0.00019178,2]
[345488978,1734291051091,-652.15,0.00019178,2]
[345488979,1734291051100,-500.0,0.00019178,2]
[345488980,1734291051109,-500.0,0.00019178,2]
[345488981,1734291051119,-652.15,0.00019178,2]
[345488982,1734291051130,-500.0,0.00019178,2]
[345488983,1734291051139,-500.0,0.00019178,2]
[345488984,1734291051149,-500.0,0.00019178,2]
[345488985,1734291051158,-500.0,0.00019178,2]
[345488986,1734291051167,-500.0,0.00019178,2]
[345488987,1734291051177,-500.0,0.00019178,2]
[345488988,1734291051187,-500.0,0.00019178,2]
[345488989,1734291051196,-500.0,0.00019178,2]
[345488990,1734291051205,-500.0,0.00019178,2]
[345488991,1734291051215,-500.0,0.00019178,2]
[345488992,1734291051224,-500.0,0.00019178,2]
[345488993,1734291051234,-500.0,0.00019178,2]
[345488994,1734291051244,-500.0,0.00019178,2]
[345488995,1734291051253,-500.0,0.00019178,2]
[345488996,1734291051262,-500.0,0.00019178,2]
[345488997,1734291051272,-500.0,0.00019178,2]
[345488998,1734291051281,-500.0,0.00019178,2]
[345488999,1734291051402,-500.0,0.00019178,2]
[345489000,1734291051411,-500.0,0.00019178,2]
[345489001,1734291051421,-500.0,0.00019178,2]
[345489002,1734291051430,-500.0,0.00019178,2]
[345489003,1734291051439,-500.0,0.00019178,2]
[345489004,1734291051449,-500.0,0.00019178,2]
[345489005,1734291051458,-500.0,0.00019178,2]
[345489006,1734291051468,-500.0,0.00019178,2]
[345489007,1734291051478,-500.0,0.00019178,2]
[345489008,1734291051487,-500.0,0.00019178,2]
[345489009,1734291051498,-500.0,0.00019178,2]
[345489010,1734291051507,-574.47,0.00019178,2]
[345489011,1734291051516,-424.77853964,0.00019178,2]
[345489012,1734291051525,-500.0,0.00019178,2]
[345489013,1734291051534,-500.0,0.00019178,2]
[345489014,1734291051545,-500.0,0.00019178,2]
[345489015,1734291051555,-500.0,0.00019178,2]
[345489016,1734291051564,-500.0,0.00019178,2]
[345489017,1734291051574,-747.73,0.00019178,2]
[345489018,1734291051583,-747.73,0.00019178,2]
[345489019,1734291051593,-747.73,0.00019178,2]
[345489020,1734291051602,-1609.45,0.00019178,2]
[345489021,1734291051612,-747.73,0.00019178,2]
[345489022,1734291051622,-1609.45,0.00019178,2]
[345489023,1734291051632,-1609.45,0.00019178,2]
[345489024,1734291051641,-171.24488623,0.00019178,2]
[345489025,1734291051650,-500.0,0.00019178,2]
[345489026,1734291051660,-500.0,0.00019178,2]
[345489027,1734291051669,-500.0,0.00019178,2]
[345489028,1734291051679,-500.0,0.00019178,2]
[345489029,1734291051688,-666.74,0.00019178,2]
[345489030,1734291051698,-666.74,0.00019178,2]
[345489031,1734291051708,-666.74,0.00019178,2]
[345489032,1734291051717,-500.0,0.00019178,2]
[345489033,1734291051730,-366.06,0.00019178,2]
[345489034,1734291051740,-500.0,0.00019178,2]
[345489035,1734291051750,-500.0,0.00019178,2]
[345489036,1734291051760,-500.0,0.00019178,2]
[345489037,1734291051771,-500.0,0.00019178,2]
[345489038,1734291051780,-500.0,0.00019178,2]
[345489039,1734291051791,-500.0,0.00019178,2]
[345489040,1734291051800,-500.0,0.00019178,2]
[345489041,1734291051812,-4000.0,0.00019178,2]
[345489042,1734291051822,-157.78,0.00019198,2]
[345489043,1734291051832,-1000.0,0.0001925,2]
[345489044,1734291051841,-279.83326404,0.00019261,2]
[345489045,1734291051851,-153.53125179,0.00019288,2]
[345489046,1734291051861,-150.0,0.00019314,2]
[345489047,1734291051871,-3000.0,0.00019316,2]
[345489048,1734291051880,-279.83326404,0.00019352,2]
[345489049,1734291051889,-3860.368067,0.000194,2]
[345489050,1734291051898,-151.0,0.00019404,2]
[345489051,1734291051907,-182.060944,0.00019404,2]
[345489052,1734291051917,-252.81487,0.00019404,2]
[345489053,1734291051928,-252.81487,0.00019404,2]
[345489054,1734291051939,-10624.45031264,0.00019404,2]
[345489055,1734291051948,-293.61,0.0001942,2]
[345489056,1734291051957,-279.83326404,0.00019443,2]
[345489057,1734291051966,-150.0,0.00019451,2]
[345489058,1734291051977,-337.36846434,0.00019477,2]
[345489059,1734291051986,-153.53125179,0.00019479,2]
[345489060,1734291051997,-201.0,0.0001948,2]
[345489061,1734291052009,-622.83,0.00019499,3]
[345489062,1734291052019,-500.0,0.00019499,3]
[345489063,1734291052029,-1116.88,0.00019499,3]
[345489064,1734291052038,-500.0,0.00019499,3]
[345489065,1734291052048,-500.0,0.00019499,3]
[345489066,1734291052057,-500.0,0.00019499,3]
[345489067,1734291052068,-500.0,0.00019499,3]
[345489068,1734291052077,-420.34,0.00019499,3]
[345489069,1734291052086,-500.0,0.00019499,3]
[345489070,1734291052095,-500.0,0.00019499,3]
[345489071,1734291052105,-500.0,0.00019499,3]
[345489072,1734291052114,-2253.07,0.00019499,3]
[345489073,1734291052124,-500.0,0.00019499,3]
[345489074,1734291052134,-915.79,0.00019499,3]
[345489075,1734291052143,-500.0,0.00019499,3]
[345489076,1734291052153,-500.0,0.00019499,3]
[345489077,1734291052163,-500.0,0.00019499,3]
[345489078,1734291052172,-555.25,0.00019499,3]
[345489079,1734291052182,-746.13,0.00019499,3]
[345489080,1734291052193,-500.0,0.00019499,3]
[345489081,1734291052205,-500.0,0.00019499,3]
[345489082,1734291052215,-500.0,0.00019499,3]
[345489083,1734291052225,-500.0,0.00019499,3]
[345489084,1734291052234,-500.0,0.00019499,3]
[345489085,1734291052243,-666.74,0.00019499,3]
[345489086,1734291052252,-6003.0,0.000195,3]
[345489087,1734291052261,-10499.74610002,0.000195,7]
[345489088,1734291052270,-279.83326404,0.00019535,2]
[345489089,1734291052280,-586.36,0.00019564,2]
[345489090,1734291052289,-500.0,0.00019576,3]
[345489091,1734291052299,-500.0,0.00019576,3]
[345489092,1734291052308,-500.0,0.00019576,3]
[345489093,1734291052319,-966.94,0.00019576,3]
[345489094,1734291052328,-500.0,0.00019576,3]
[345489095,1734291052338,-536.07,0.00019576,3]
[345489096,1734291052347,-500.0,0.00019576,3]
[345489097,1734291052357,-1775.77,0.00019576,3]
[345489098,1734291052367,-626.63,0.00019576,3]
[345489099,1734291052376,-500.0,0.00019576,3]
[345489100,1734291052386,-1330.09,0.00019576,3]
[345489101,1734291052395,-689.0,0.00019577,2]
[345489102,1734291052404,-1263.0,0.00019577,2]
[345489103,1734291052414,-180.908,0.00019577,2]
[345489104,1734291052423,-634.0,0.00019577,2]
[345489105,1734291052432,-3881.0,0.00019577,2]
[345489106,1734291052444,-1168.0,0.00019577,2]
[345489107,1734291052453,-150.0,0.00019577,2]
[345489108,1734291052462,-13735.0,0.00019577,2]
[345489109,1734291052472,-1000.0,0.00019583,5]
[345489110,1734291052481,-150.0,0.00019588,2]
[345489111,1734291052490,-279.83326404,0.00019626,2]
[345489112,1734291052500,-153.53125179,0.00019644,2]
[345489113,1734291052510,-500.0,0.00019685,3]
[345489114,1734291052519,-150.1770967,0.00019685,3]
[345489115,1734291052529,-161.74906224,0.00019685,3]
[345489116,1734291052538,-150.09358956,0.00019685,3]
[345489117,1734291052548,-150.08196615,0.00019685,3]
[345489118,1734291052559,-150.0,0.00019685,3]
[345489119,1734291052569,-242.30363419,0.00019685,3]
[345489120,1734291052579,-150.0,0.00019685,3]
[345489121,1734291052589,-150.0,0.00019685,2]
[345489122,1734291052599,-500.0,0.00019685,3]
[345489123,1734291052608,-500.0,0.00019685,3]
[345489124,1734291052619,-279.83326404,0.00019717,2]
[345489125,1734291052628,-150.0,0.00019725,2]
[345489126,1734291052638,-582.88,0.00019725,3]
[345489127,1734291052648,-1258.82,0.00019726,4]
[345489128,1734291052657,-1258.82,0.00019726,4]
[345489129,1734291052667,-1258.82,0.00019726,4]
[345489130,1734291052676,-1258.82,0.00019726,4]
[345489131,1734291052687,-1258.82,0.00019726,4]
[345489132,1734291052697,-1258.82,0.00019726,4]
[345489133,1734291052706,-1258.82,0.00019726,4]
[345489134,1734291052716,-1258.82,0.00019726,4]
[345489135,1734291052729,-1258.82,0.00019726,4]
[345489136,1734291052739,-1258.82,0.00019726,4]
[345489137,1734291052749,-151.0,0.00019726,2]
[345489138,1734291052758,-151.0,0.00019726,2]
[345489139,1734291052767,-151.0,0.00019726,2]
[345489140,1734291052777,-350.04085112,0.00019741,2]
[345489141,1734291052787,-350.04085112,0.00019746,2]
[345489142,1734291052796,-350.04085112,0.00019748,2]
[345489143,1734291052806,-200.0,0.00019755,2]
[345489144,1734291052816,-350.04085112,0.00019755,2]
[345489145,1734291052826,-200.0,0.00019755,2]
[345489146,1734291052836,-350.04085112,0.00019763,2]
[345489147,1734291052845,-662.8316714,0.00019764,2]
[345489148,1734291052855,-662.8316714,0.00019765,2]
[345489149,1734291052864,-662.8316714,0.00019771,2]
[345489150,1734291052874,-662.8316714,0.00019774,2]
[345489151,1734291052884,-662.8316714,0.00019788,2]
[345489152,1734291052893,-662.8316714,0.0001979,2]
[345489153,1734291052903,-350.04085112,0.00019799,2]
[345489154,1734291052913,-153.53125179,0.00019808,2]
[345489155,1734291052922,-279.83326404,0.00019809,2]
[345489156,1734291052932,-200.0,0.00019829,2]
[345489157,1734291052942,-201.0,0.0001986,2]
[345489158,1734291052951,-150.0,0.00019862,2]
[345489159,1734291052961,-800.0,0.0001989,2]
[345489160,1734291052971,-800.0,0.0001989,2]
[345489161,1734291052982,-184.45989273,0.00019897,2]
[345489162,1734291052992,-500.0,0.00019898,3]
[345489163,1734291053002,-500.0,0.00019898,3]
[345489164,1734291053013,-385.99,0.00019898,3]
[345489165,1734291053022,-637.74,0.00019898,3]
[345489166,1734291053031,-500.0,0.00019898,3]
[345489167,1734291053040,-1247.21,0.00019898,3]
[345489168,1734291053049,-633.08,0.00019898,3]
[345489169,1734291053058,-500.0,0.00019898,3]
[345489170,1734291053067,-500.0,0.00019898,3]
[345489171,1734291053077,-500.0,0.00019898,3]
[345489172,1734291053086,-2144.06,0.00019898,3]
[345489173,1734291053095,-643.15,0.00019898,3]
[345489174,1734291053104,-762.21,0.00019898,3]
[345489175,1734291053113,-951.25,0.00019898,3]
[345489176,1734291053122,-2641.21,0.00019898,3]
[345489177,1734291053131,-595.91,0.00019898,3]
[345489178,1734291053140,-616.29,0.00019898,3]
[345489179,1734291053150,-500.0,0.00019898,3]
[345489180,1734291053159,-922.52,0.00019898,3]
[345489181,1734291053169,-500.0,0.00019898,3]
[345489182,1734291053179,-500.0,0.00019898,3]
[345489183,1734291053189,-500.0,0.00019898,3]
[345489184,1734291053199,-500.0,0.00019898,3]
[345489185,1734291053208,-500.0,0.00019898,3]
[345489186,1734291053217,-500.0,0.00019898,3]
[345489187,1734291053226,-500.0,0.00019898,3]
[345489188,1734291053235,-652.15,0.00019898,3]
[345489189,1734291053245,-500.0,0.00019898,3]
[345489190,1734291053254,-282.67,0.00019898,3]
[345489191,1734291053263,-1609.45,0.00019898,3]
[345489192,1734291053272,-500.0,0.00019898,3]
[345489193,1734291053281,-500.0,0.00019899,3]
[345489194,1734291053290,-1056.63,0.00019899,3]
[345489195,1734291053299,-521.68,0.00019899,3]
[345489196,1734291053308,-500.0,0.00019899,3]
[345489197,1734291053317,-500.0,0.00019899,3]
[345489198,1734291053326,-495.25,0.00019899,3]
[345489199,1734291053336,-723.25,0.00019899,3]
[345489200,1734291053345,-612.94,0.00019899,3]
[345489201,1734291053354,-500.0,0.00019899,3]
[345489202,1734291053363,-500.0,0.00019899,3]
[345489203,1734291053372,-154.44731121,0.00019899,3]
[345489204,1734291093462,185.50864951,0.00015,2]
[345489205,1734291256856,2000.0,0.00018885,120]
[345489207,1734291800128,450.0,0.00013,2]
[345489208,1734291887223,250.14,0.00018553,30]
[345489215,1734292231954,-695.3,0.00016924,2]
[345489216,1734292231964,-605.86384173,0.00018127,2]
[345489217,1734292231973,-7473.67,0.00018134,2]
[345489218,1734292231985,-324.08,0.00018227,2]
[345489219,1734292231994,-393.96,0.000183,2]
[345489220,1734292232005,-250.0,0.00018323,2]
[345489221,1734292232014,-1000.0,0.00018338,2]
[345489222,1734292232024,-275.66,0.00018354,2]
[345489223,1734292232034,-195.74,0.00018357,2]
[345489224,1734292232044,-18429.0,0.00018422,2]
[345489225,1734292232054,-216.04,0.00018428,2]
[345489226,1734292232063,-150.0,0.00018584,2]
[345489227,1734292232072,-152.0,0.00018622,3]
[345489228,1734292232082,-2751.0,0.00018745,2]
[345489229,1734292232093,-200.0,0.00018765,2]
[345489230,1734292232103,-150.0,0.00018878,2]
[345489231,1734292232112,-435.71,0.00018878,2]
[345489232,1734292232122,-150.0,0.00018878,2]
[345489233,1734292232131,-150.0,0.00018878,2]
[345489234,1734292232140,-364.52,0.00018878,2]
[345489235,1734292232149,-150.0,0.00018878,2]
[345489236,1734292232158,-975.36,0.00018878,2]
[345489237,1734292232168,-150.33,0.00018878,2]
[345489238,1734292232177,-150.0,0.00018878,2]
[345489239,1734292232186,-975.74,0.00018878,2]
[345489240,1734292232197,-435.71,0.00018878,2]
[345489241,1734292232210,-150.0,0.00018878,2]
[345489242,1734292232218,-364.65,0.00018878,2]
[345489243,1734292232227,-150.0,0.00018878,2]
[345489244,1734292232236,-150.0,0.00018878,2]
[345489245,1734292232246,-150.0,0.00018878,2]
[345489246,1734292232256,-435.71,0.000189,2]
[345489247,1734292232265,-150.0,0.000189,2]
[345489248,1734292232276,-975.74,0.000189,2]
[345489249,1734292232286,-150.0,0.000189,2]
[345489250,1734292232295,-364.65,0.000189,2]
[345489251,1734292232304,-150.0,0.000189,2]
[345489252,1734292232313,-150.0,0.000189,2]
[345489253,1734292232322,-150.0,0.000189,2]
[345489254,1734292232331,-662.928,0.0001891,2]
[345489255,1734292232340,-634.54,0.00018943,2]
[345489256,1734292232349,-7501.50813368,0.00019,7]
[345489257,1734292232358,-917.0656381,0.00019078,2]
[345489258,1734292232367,-500.0,0.00019078,2]
[345489259,1734292232375,-4280.5306,0.00019078,2]
[345489260,1734292232384,-500.0,0.00019164,2]
[345489261,1734292232394,-500.0,0.00019164,2]
[345489262,1734292232403,-917.06563802,0.00019169,2]
[345489263,1734292232412,-824.20099547,0.00019177,2]
[345489264,1734292232421,-332.07310406,0.00019178,2]
[345489266,1734292232430,-500.0,0.00019178,2]
[345489268,1734292232439,-500.0,0.00019178,2]
[345489270,1734292232449,-500.0,0.00019178,2]
[345489272,1734292232458,-401.2942686,0.00019178,2]
[345489274,1734292232467,-500.0,0.00019178,2]
[345489276,1734292232476,-500.0,0.00019178,2]
[345489278,1734292232485,-500.0,0.00019178,2]
[345489280,1734292232494,-500.0,0.00019178,2]
[345489282,1734292232503,-500.0,0.00019178,2]
[345489284,1734292232512,-571.63391949,0.00019178,2]
[345489286,1734292232521,-228.85908007,0.00019178,2]
[345489288,1734292232530,-500.0,0.00019178,2]
[345489290,1734292232539,-500.0,0.00019178,2]
[345489292,1734292232549,-500.0,0.00019178,2]
[345489294,1734292232558,-310.56,0.00019178,2]
[345489296,1734292232567,-500.0,0.00019178,2]
[345489298,1734292232576,-500.0,0.00019178,2]
[345489300,1734292232585,-500.0,0.00019178,2]
[345489302,1734292232595,-500.0,0.00019178,2]
[345489304,1734292232604,-354.1,0.00019178,2]
[345489306,1734292232613,-316.01388611,0.00019178,2]
[345489308,1734292232622,-500.0,0.00019178,2]
[345489310,1734292232631,-500.0,0.00019178,2]
[345489312,1734292232640,-333.06,0.00019178,2]
[345489314,1734292232649,-500.0,0.00019178,2]
[345489316,1734292232658,-500.0,0.00019178,2]
[345489318,1734292232667,-500.0,0.00019178,2]
[345489320,1734292232677,-500.0,0.00019178,2]
[345489322,1734292232686,-500.0,0.00019178,2]
[345489324,1734292232695,-500.0,0.00019178,2]
[345489326,1734292232704,-609.56,0.00019178,2]
[345489328,1734292232713,-435.91832901,0.00019178,2]
[345489330,1734292232723,-500.0,0.00019178,2]
[345489332,1734292232732,-500.0,0.00019178,2]
[345489334,1734292232741,-500.0,0.00019178,2]
[345489336,1734292232751,-500.0,0.00019178,2]
[345489338,1734292232759,-433.66,0.00019178,2]
[345489340,1734292232768,-217.76833372,0.00019178,2]
[345489342,1734292232777,-637.81879902,0.00019178,2]
[345489344,1734292232786,-500.0,0.00019178,2]
[345489346,1734292232795,-500.0,0.00019178,2]
[345489348,1734292232804,-500.0,0.00019178,2]
[345489350,1734292232813,-500.0,0.00019178,2]
[345489352,1734292232823,-646.33,0.00019178,2]
[345489354,1734292232833,-544.16,0.00019178,2]
[345489356,1734292232843,-500.0,0.00019178,2]
[345489358,1734292232852,-500.0,0.00019178,2]
[345489360,1734292232861,-500.0,0.00019178,2]
[345489362,1734292232871,-500.0,0.00019178,2]
[345489364,1734292232881,-500.0,0.00019178,2]
[345489366,1734292232889,-293.28,0.00019178,2]
[345489368,1734292232899,-500.0,0.00019178,2]
[345489370,1734292232908,-216.4,0.00019178,2]
[345489372,1734292232917,-500.0,0.00019178,2]
[345489374,1734292232926,-500.0,0.00019178,2]
[345489376,1734292232935,-500.0,0.00019178,2]
[345489378,1734292232944,-500.0,0.00019178,2]
[345489380,1734292232953,-349.05891353,0.00019178,2]
[345489382,1734292232963,-500.0,0.00019178,2]
[345489384,1734292232972,-500.0,0.00019178,2]
[345489386,1734292232981,-500.0,0.00019178,2]
[345489388,1734292232991,-500.0,0.00019178,2]
[345489390,1734292233000,-500.0,0.00019178,2]
[345489392,1734292233009,-615.39,0.00019178,2]
[345489394,1734292233018,-500.0,0.00019178,2]
[345489396,1734292233028,-500.0,0.00019178,2]
[345489398,1734292233037,-285.28,0.00019178,2]
[345489400,1734292233046,-500.0,0.00019178,2]
[345489402,1734292233062,-500.0,0.00019178,2]
[345489403,1734292233071,-500.0,0.00019178,2]
[345489405,1734292233081,-500.0,0.00019178,2]
[345489407,1734292233090,-500.0,0.00019178,2]
[345489409,1734292233099,-500.0,0.00019178,2]
[345489411,1734292233109,-500.0,0.00019178,2]
[345489413,1734292233118,-500.0,0.00019178,2]
[345489415,1734292233127,-500.0,0.00019178,2]
[345489417,1734292233136,-500.0,0.00019178,2]
[345489419,1734292233146,-500.0,0.00019178,2]
[345489421,1734292233156,-500.0,0.00019178,2]
[345489423,1734292233165,-500.0,0.00019178,2]
[345489425,1734292233175,-500.0,0.00019178,2]
[345489427,1734292233184,-500.0,0.00019178,2]
[345489429,1734292233194,-500.0,0.00019178,2]
[345489431,1734292233203,-292.38,0.00019178,2]
[345489433,1734292233213,-500.0,0.00019178,2]
[345489435,1734292233223,-500.0,0.00019178,2]
[345489437,1734292233232,-500.0,0.00019178,2]
[345489439,1734292233242,-500.0,0.00019178,2]
[345489441,1734292233251,-500.0,0.00019178,2]
[345489443,1734292233261,-647.16466093,0.00019178,2]
[345489445,1734292233271,-500.0,0.00019178,2]
[345489447,1734292233280,-500.0,0.00019178,2]
[345489449,1734292233289,-500.0,0.00019178,2]
[345489451,1734292233300,-500.0,0.00019178,2]
[345489453,1734292233309,-500.0,0.00019178,2]
[345489455,1734292233318,-500.0,0.00019178,2]
[345489457,1734292233327,-500.0,0.00019178,2]
[345489459,1734292233336,-638.55,0.00019178,2]
[345489461,1734292233345,-500.0,0.00019178,2]
[345489463,1734292233354,-387.67,0.00019178,2]
[345489465,1734292233363,-500.0,0.00019178,2]
[345489467,1734292233372,-500.0,0.00019178,2]
[345489469,1734292233381,-282.43,0.00019178,2]
[345489471,1734292233390,-507.82216895,0.00019178,2]
[345489473,1734292233400,-609.9,0.00019178,2]
[345489475,1734292233410,-500.0,0.00019178,2]
[345489477,1734292233419,-467.09,0.00019178,2]
[345489479,1734292233428,-593.60832195,0.00019178,2]
[345489481,1734292233437,-500.0,0.00019178,2]
[345489483,1734292233447,-500.0,0.00019178,2]
[345489485,1734292233455,-500.0,0.00019178,2]
[345489487,1734292233465,-500.0,0.00019178,2]
[345489489,1734292233475,-162.26,0.00019178,2]
[345489491,1734292233484,-500.0,0.00019178,2]
[345489493,1734292233494,-500.0,0.00019178,2]
[345489495,1734292233502,-589.94,0.00019178,2]
[345489496,1734292233511,-500.0,0.00019178,2]
[345489497,1734292233520,-528.36,0.00019178,2]
[345489498,1734292233529,-1593.1,0.00019178,2]
[345489499,1734292233538,-1593.1,0.00019178,2]
[345489500,1734292233548,-500.0,0.00019178,2]
[345489501,1734292233557,-1593.1,0.00019178,2]
[345489502,1734292233567,-500.0,0.00019178,2]
[345489503,1734292233577,-500.0,0.00019178,2]
[345489504,1734292233586,-500.0,0.00019178,2]
[345489506,1734292233595,-500.0,0.00019178,2]
[345489508,1734292233604,-1458.4,0.00019178,2]
[345489510,1734292233614,-1458.4,0.00019178,2]
[345489512,1734292233623,-1458.4,0.00019178,2]
[345489514,1734292233632,-500.0,0.00019178,2]
[345489516,1734292233641,-500.0,0.00019178,2]
[345489518,1734292233650,-649.78,0.00019178,2]
[345489520,1734292233659,-500.97,0.00019178,2]
[345489522,1734292233669,-500.0,0.00019178,2]
[345489523,1734292233678,-500.0,0.00019178,2]
[345489525,1734292233687,-500.0,0.00019178,2]
[345489527,1734292233696,-542.48443334,0.00019178,2]
[345489529,1734292233705,-500.0,0.00019178,2]
[345489531,1734292233714,-500.0,0.00019178,2]
[345489533,1734292233724,-500.0,0.00019178,2]
[345489535,1734292233733,-500.0,0.00019178,2]
[345489537,1734292233743,-500.0,0.00019178,2]
[345489539,1734292233752,-500.0,0.00019178,2]
[345489541,1734292233762,-500.0,0.00019178,2]
[345489544,1734292233772,-500.0,0.00019178,2]
[345489546,1734292233781,-500.0,0.00019178,2]
[345489548,1734292233790,-711.8,0.00019178,2]
[345489549,1734292233801,-500.0,0.00019178,2]
[345489551,1734292233810,-593.35,0.00019178,2]
[345489553,1734292233819,-500.0,0.00019178,2]
[345489555,1734292233829,-635.64,0.00019178,2]
[345489557,1734292233838,-500.0,0.00019178,2]
[345489559,1734292233848,-500.0,0.00019178,2]
[345489561,1734292233858,-500.0,0.00019178,2]
[345489563,1734292233868,-500.0,0.00019178,2]
[345489565,1734292233877,-500.0,0.00019178,2]
[345489568,1734292233887,-500.0,0.00019178,2]
[345489570,1734292233897,-500.0,0.00019178,2]
[345489572,1734292233907,-534.81497386,0.00019178,2]
[345489573,1734292233916,-500.0,0.00019178,2]
[345489575,1734292233925,-500.0,0.00019178,2]
[345489577,1734292233934,-500.0,0.00019178,2]
[345489579,1734292233944,-500.0,0.00019178,2]
[345489581,1734292233953,-500.0,0.00019178,2]
[345489583,1734292233962,-500.0,0.00019178,2]
[345489585,1734292233972,-500.0,0.00019178,2]
[345489587,1734292233981,-403.01,0.00019178,2]
[345489589,1734292233990,-500.0,0.00019178,2]
[345489591,1734292233999,-500.0,0.00019178,2]
[345489593,1734292234009,-500.0,0.00019178,2]
[345489595,1734292234018,-517.28031283,0.00019178,2]
[345489597,1734292234027,-500.0,0.00019178,2]
[345489600,1734292234037,-511.92645407,0.00019178,2]
[345489602,1734292234047,-500.0,0.00019178,2]
[345489604,1734292234057,-500.0,0.00019178,2]
[345489606,1734292234067,-500.0,0.00019178,2]
[345489608,1734292234076,-500.0,0.00019178,2]
[345489610,1734292234085,-500.0,0.00019178,2]
[345489612,1734292234095,-500.0,0.00019178,2]
[345489614,1734292234104,-500.0,0.00019178,2]
[345489616,1734292234113,-500.0,0.00019178,2]
[345489618,1734292234123,-500.0,0.00019178,2]
[345489620,1734292234133,-500.0,0.00019178,2]
[345489622,1734292234143,-500.0,0.00019178,2]
[345489624,1734292234152,-500.0,0.00019178,2]
[345489626,1734292234161,-500.0,0.00019178,2]
[345489628,1734292234170,-500.0,0.00019178,2]
[345489630,1734292234180,-500.0,0.00019178,2]
[345489632,1734292234189,-500.0,0.00019178,2]
[345489634,1734292234199,-500.0,0.00019178,2]
[345489635,1734292234210,-500.0,0.00019178,2]
[345489637,1734292234219,-500.0,0.00019178,2]
[345489639,1734292234228,-500.0,0.00019178,2]
[345489641,1734292234238,-200.55,0.00019178,2]
[345489643,1734292234247,-500.0,0.00019178,2]
[345489645,1734292234256,-499.80980142,0.00019178,2]
[345489647,1734292234266,-307.02,0.00019178,2]
[345489648,1734292234275,-500.0,0.00019178,2]
[345489649,1734292234284,-500.0,0.00019178,2]
[345489650,1734292234294,-523.28,0.00019178,2]
[345489651,1734292234305,-500.0,0.00019178,2]
[345489652,1734292234314,-500.0,0.00019178,2]
[345489653,1734292234324,-500.0,0.00019178,2]
[345489654,1734292234333,-160.77320266,0.00019178,2]
[345489655,1734292234342,-500.0,0.00019178,2]
[345489656,1734292234352,-500.0,0.00019178,2]
[345489657,1734292234362,-500.0,0.00019178,2]
[345489658,1734292234371,-500.0,0.00019178,2]
[345489659,1734292234380,-500.0,0.00019178,2]
[345489660,1734292234389,-500.0,0.00019178,2]
[345489661,1734292234399,-500.0,0.00019178,2]
[345489662,1734292234408,-500.0,0.00019178,2]
[345489663,1734292234419,-500.0,0.00019178,2]
[345489664,1734292234429,-258.51,0.00019178,2]
[345489665,1734292234438,-500.0,0.00019178,2]